bitfinex/quotes_ETHUSD_20251212
["timestamp","ask_amount","ask_price","bid_price","bid_amount"]
[1765558144822,0.91187529,3066.4,3065.1,3.45719447]
[1765558145027,0.91187529,3066.4,3065.1,0.1947]
[1765558145028,0.3314,3066.3,3065.1,0.1947]
[1765558145178,6.28411,3066.1,3065.2,3.26236651]
[1765558145376,0.58047529,3066.4,3065.2,0.65250053]
[1765558145703,3.26104679,3066.5,3065.5,3.2620854]
[1765558145704,0.58047529,3066.5,3065.5,3.2620854]
[1765558146012,0.58047529,3066.5,3065.7,3.26184277]
[1765558146402,0.11,3065.8,3065.1,3.26245049]
[1765558146591,3.26107767,3066.5,3065.3,6.52463788]
[1765558146793,0.533,3066.7,3065.5,0.405504]
[1765558147116,0.001,3066.7,3065.7,0.405504]
[1765558147306,0.001,3066.7,3065.9,0.405504]
[1765558147683,0.001,3066.7,3066.1,0.405504]
[1765558148085,0.001,3066.7,3066.2,0.1947]
[1765558148490,0.001,3066.7,3066.3,7.02121898]
[1765558148719,0.001,3066.7,3066.4,0.7215919]
[1765558149921,0.001,3066.7,3066.2,3.26135661]
[1765558150227,0.001,3066.7,3066.2,3.2613551]
[1765558150411,0.3314,3066.6,3065.9,3.26164231]
[1765558150623,0.3314,3066.6,3065.2,0.4987]
[1765558150916,0.3314,3066.6,3065.2,3.26237154]
[1765558150917,0.11,3065.5,3065.2,3.26237154]
[1765558151125,0.11,3065.5,3065.0,3.26262066]
[1765558151420,0.11,3065.5,3064.4,3.26326506]
[1765558151720,0.11,3065.5,3063.7,3.45871916]
[1765558151721,0.1113,3064.5,3063.7,0.1947]
[1765558151909,0.1113,3064.5,3064.0,3.26370375]
[1765558152217,0.1113,3064.8,3064.1,0.32637038]
[1765558152408,3.26296211,3064.7,3063.8,3.26384026]
[1765558152719,7.16907708,3064.8,3063.8,3.26384026]
[1765558152923,3.90618854,3064.8,3063.8,6.52776088]
[1765558153221,3.90618854,3064.8,3063.7,3.26401877]
[1765558153222,0.91187529,3064.7,3063.7,3.26401877]
[1765558153419,0.91187529,3064.7,3063.7,3.91684296]
[1765558153623,0.1113,3064.8,3063.7,10.44489726]
[1765558153843,0.1113,3064.8,3063.7,7.18087011]
[1765558153844,0.6433,3064.8,3063.7,7.18087011]
[1765558153997,0.91187529,3064.7,3063.4,3.26433698]
[1765558154334,0.91187529,3064.7,3063.0,3.45941931]
[1765558154335,0.58047529,3064.5,3063.0,3.45941931]
[1765558154545,3.26349454,3064.2,3063.1,6.52933302]
[1765558154691,3.26349454,3064.2,3063.2,0.99887523]
[1765558155099,0.6433,3064.8,3063.2,0.99887523]
[1765558155100,0.532,3064.5,3063.2,0.99887523]
[1765558155407,0.58047529,3064.3,3063.2,0.99887523]
[1765558156318,0.91187529,3064.4,3063.2,0.99887523]
[1765558156523,0.532,3064.5,3063.5,0.405504]
[1765558156694,0.532,3064.5,3063.6,1.01985444]
[1765558156890,0.532,3064.5,3063.7,0.43814427]
[1765558157100,0.3314,3065.4,3064.4,0.1947]
[1765558157302,0.1113,3064.5,3063.6,1.51855444]
[1765558157536,0.1113,3064.5,3063.4,6.5286936]
[1765558158102,4.301697,3064.4,3063.3,3.26441762]
[1765558158317,4.301697,3064.4,3063.3,6.52887098]
[1765558158318,2.827034,3064.4,3063.3,6.52887098]
[1765558158518,0.4427,3064.5,3063.3,6.52887098]
[1765558158519,1.02317529,3064.5,3063.3,7.02767098]
[1765558158722,0.4427,3064.5,3063.4,1.12909998]
[1765558159002,0.642,3065.5,3063.5,0.405504]
[1765558159221,0.642,3065.5,3064.4,0.1901]
[1765558159222,3.262217,3065.4,3064.4,0.1901]
[1765558159421,0.58047529,3065.3,3063.6,0.4988]
[1765558160229,0.91187529,3065.3,3063.6,0.4988]
[1765558160414,1.71970622,3065.3,3063.6,0.4988]
[1765558160613,0.58047529,3065.1,3063.8,0.405504]
[1765558160832,0.642,3065.5,3063.8,0.98597929]
[1765558161020,0.642,3065.5,3064.0,0.405504]
[1765558161209,0.58047529,3065.4,3064.0,0.405504]
[1765558161542,0.11,3065.5,3064.2,0.405504]
[1765558161752,0.11,3065.8,3064.2,0.405504]
[1765558162043,0.11,3065.8,3064.3,0.4694]
[1765558162645,0.69047529,3065.8,3064.5,0.98597929]
[1765558162844,0.58047529,3065.6,3064.4,6.5265631]
[1765558163054,0.91187529,3065.6,3064.4,6.5265631]
[1765558163518,0.11,3065.8,3064.6,0.405504]
[1765558163720,3.95229532,3065.8,3064.7,0.4694]
[1765558163957,3.95229532,3065.8,3064.5,0.58047529]
[1765558164171,0.3314,3065.7,3064.6,1.03703199]
[1765558164463,0.91187529,3065.7,3064.4,3.26328155]
[1765558164634,3.262217,3065.4,3064.3,3.26338804]
[1765558164972,3.26212029,3065.5,3064.3,6.52677608]
[1765558165145,6.52424058,3065.5,3064.3,6.52677608]
[1765558165447,6.52424058,3065.5,3064.4,0.69961761]
[1765558165650,0.3314,3065.4,3064.4,0.69961761]
[1765558165850,6.52424058,3065.5,3064.5,0.4694]
[1765558165851,0.58047529,3065.5,3064.5,0.4694]
[1765558166026,0.11,3065.8,3064.6,0.405504]
[1765558166227,0.58047529,3065.7,3064.6,0.405504]
[1765558166428,0.91187529,3065.7,3064.4,0.69961761]
[1765558166646,0.91187529,3065.7,3064.6,6.52613716]
[1765558166954,6.52400834,3065.6,3064.6,6.52613716]
[1765558167155,5.82057429,3065.6,3064.6,3.26306858]
[1765558167342,0.3314,3065.5,3064.5,3.98571892]
[1765558167535,0.3314,3065.5,3064.5,3.26307955]
[1765558168374,0.3314,3065.5,3064.3,3.26338033]
[1765558168666,0.3314,3065.5,3064.5,6.52633189]
[1765558168838,0.58047529,3065.3,3064.3,6.52677608]
[1765558169479,0.58047529,3065.3,3064.3,6.99617608]
[1765558169663,0.11,3065.8,3064.5,0.405504]
[1765558169850,0.91187529,3065.7,3064.4,1.49536333]
[1765558170599,0.3314,3065.6,3064.4,1.02596333]
[1765558171436,0.58047529,3065.4,3064.5,3.26317506]
[1765558171642,0.58047529,3065.4,3064.4,4.28922765]
[1765558171869,0.11,3065.8,3064.5,0.4694]
[1765558172041,0.532,3065.7,3064.5,0.4694]
[1765558172241,0.58047529,3065.6,3064.5,0.4694]
[1765558172641,3.37179153,3065.8,3063.7,0.49006189]
[1765558172642,0.1113,3064.6,3063.7,0.49006189]
[1765558172837,0.532,3064.5,3063.1,25.21519044]
[1765558173065,4.165193,3064.2,3063.2,2.54098904]
[1765558173278,4.165193,3064.2,3062.7,0.6641]
[1765558173485,3.26370757,3064.0,3062.8,6.52997256]
[1765558173696,3.79527978,3064.5,3062.8,13.52934512]
[1765558173697,0.58047529,3064.4,3062.8,13.52934512]
[1765558173984,2.098034,3065.7,3064.4,0.1939]
[1765558174142,0.3314,3065.6,3064.0,0.1939]
[1765558174344,0.58047529,3065.6,3064.0,0.1939]
[1765558174588,3.7031937,3065.8,3064.1,0.874904]
[1765558174756,0.09161854,3066.2,3065.7,0.1939]
[1765558174944,0.09161854,3066.2,3066.1,0.1939]
[1765558175286,0.09161854,3066.2,3066.1,0.6633]
[1765558175441,0.09161854,3066.2,3066.1,3.92477222]
[1765558175988,0.09161854,3066.2,3066.1,4.33027622]
[1765558176579,0.09161854,3066.2,3066.1,3.92477222]
[1765558177568,0.09161854,3066.2,3066.1,4.33027622]
[1765558177791,0.09161854,3066.6,3066.1,4.33027622]
[1765558177792,0.001,3066.7,3066.2,0.405504]
[1765558178111,0.001,3066.7,3066.1,7.94543138]
[1765558178393,0.001,3066.7,3066.2,0.874904]
[1765558178769,0.001,3066.7,3066.4,0.405504]
[1765558178964,0.001,3067.0,3066.6,0.405504]
[1765558179469,0.001,3067.0,3066.8,0.405504]
[1765558179689,0.001,3067.0,3066.8,3.26072512]
[1765558179868,0.001,3067.0,3066.8,3.73012512]
[1765558180191,0.001,3067.0,3066.8,3.26072512]
[1765558180405,0.001,3067.0,3066.8,3.912872]
[1765558180574,0.001,3067.0,3066.8,3.26072512]
[1765558180972,0.001,3067.0,3066.9,0.874904]
[1765558181498,0.001,3067.0,3066.8,3.26072512]
[1765558181697,0.001,3067.0,3066.6,6.9273849]
[1765558181994,0.001,3067.0,3066.8,0.405504]
[1765558182187,0.001,3067.0,3066.9,0.874904]
[1765558183602,0.001,3067.0,3066.9,0.4694]
[1765558183776,0.001,3067.0,3066.8,3.26072779]
[1765558183983,0.001,3067.0,3066.8,3.9534293]
[1765558185011,0.001,3067.0,3066.8,4.4228293]
[1765558185177,0.001,3067.0,3066.9,0.934]
[1765558185383,0.001,3067.0,3066.8,3.26072779]
[1765558185583,0.001,3067.0,3066.5,0.58047529]
[1765558185777,0.111,3066.9,3066.4,3.26110338]
[1765558185989,0.111,3066.9,3066.3,3.26125199]
[1765558186197,0.111,3066.9,3065.8,0.4694]
[1765558186494,0.111,3066.9,3065.9,3.26168418]
[1765558186495,0.3324,3066.8,3065.9,3.26168418]
[1765558186694,0.3324,3066.8,3066.1,3.26140133]
[1765558186897,0.3324,3066.8,3066.1,3.26137891]
[1765558187593,0.3324,3066.8,3065.8,3.6542975]
[1765558187919,3.59319923,3066.8,3065.9,3.26165584]
[1765558188097,1.08208243,3066.7,3065.7,3.26186062]
[1765558188397,1.66255772,3066.7,3065.8,3.26178558]
[1765558188579,1.66255772,3066.7,3065.7,3.26186974]
[1765558188580,0.3324,3066.6,3065.7,3.26186974]
[1765558188780,0.3324,3066.6,3065.1,3.73186636]
[1765558188981,0.16625577,3066.5,3065.1,3.73186636]
[1765558189179,0.16625577,3066.5,3065.8,3.26177121]
[1765558189379,0.16625577,3066.5,3065.1,1.04987529]
[1765558189584,0.49865577,3066.5,3065.8,3.26178438]
[1765558189768,0.49865577,3066.5,3065.3,3.26232342]
[1765558189769,3.42733719,3066.5,3065.3,3.26232342]
[1765558189973,3.26108142,3066.5,3065.4,0.37317234]
[1765558190889,3.26100778,3066.6,3065.4,0.37317234]
[1765558191278,6.52201556,3066.6,3065.4,0.37317234]
[1765558191497,0.3324,3066.5,3065.3,6.99404684]
[1765558191680,5.797957,3066.4,3065.2,3.26241133]
[1765558192003,0.58047529,3066.2,3065.1,3.26253559]
[1765558192310,0.58047529,3066.2,3065.0,3.45652303]
[1765558192311,2.006461,3066.1,3065.0,3.26261286]
[1765558192477,1.11247529,3066.0,3065.0,3.26261286]
[1765558192901,0.11,3065.9,3065.0,6.5252556]
[1765558193280,0.11,3065.9,3065.0,3.26261286]
[1765558193807,0.11,3065.9,3065.0,6.5252556]
[1765558194001,3.37169365,3065.9,3064.9,6.52549838]
[1765558194309,3.85335054,3065.9,3064.9,6.52549838]
[1765558194802,7.11504419,3065.9,3064.9,6.52549838]
[1765558194980,7.11504419,3065.9,3064.9,3.26274919]
[1765558195186,0.3324,3065.8,3064.9,6.52549838]
[1765558195385,0.85599195,3065.8,3064.9,6.52549838]
[1765558195697,3.95218775,3065.9,3064.9,6.52549838]
[1765558196403,7.21390021,3065.9,3064.9,3.26274919]
[1765558196578,0.3324,3065.8,3064.8,3.45673432]
[1765558196780,0.11,3065.9,3064.8,7.21828997]
[1765558197008,0.11,3065.9,3064.9,0.4987]
[1765558197306,0.11,3065.9,3064.9,1.220529]
[1765558197608,0.11,3066.1,3065.1,0.405504]
[1765558197977,0.532,3066.6,3065.3,0.405504]
[1765558197978,0.58047529,3066.4,3065.3,0.405504]
[1765558198376,0.532,3066.6,3065.5,0.405504]
[1765558198607,0.532,3066.6,3065.7,0.405504]
[1765558198812,0.532,3066.6,3065.9,0.405504]
[1765558199178,0.532,3066.6,3065.9,0.904204]
[1765558199688,0.001,3067.0,3066.5,0.682]
[1765558199883,0.001,3067.0,3066.6,0.4987]
[1765558200192,0.111,3066.9,3066.3,0.1936]
[1765558200514,0.111,3066.9,3066.3,6.52249253]
[1765558200687,0.533,3067.0,3066.4,0.65224925]
[1765558200688,0.001,3067.0,3066.4,0.65224925]
[1765558201012,0.001,3067.0,3066.4,1.15094925]
[1765558201194,0.001,3067.0,3066.4,0.65224925]
[1765558201510,0.111,3066.9,3066.2,3.26133471]
[1765558201711,0.111,3066.9,3066.1,0.1936]
[1765558201915,0.111,3066.9,3065.9,0.4987]
[1765558202094,0.4434,3066.9,3065.5,0.4987]
[1765558202408,4.40060808,3066.9,3065.7,0.58047529]
[1765558202613,11.82710329,3066.8,3065.3,3.26232187]
[1765558202811,11.82710329,3066.8,3065.2,0.1936]
[1765558202812,20.933188,3066.5,3065.2,0.1936]
[1765558203113,0.532,3066.4,3065.2,3.45602628]
[1765558203298,0.532,3066.4,3064.9,0.721829]
[1765558203299,15.995151,3066.1,3064.9,0.721829]
[1765558203504,1.65756263,3066.0,3064.6,0.6923]
[1765558203703,0.58047529,3066.0,3064.6,0.1936]
[1765558203883,0.58047529,3065.7,3064.6,0.1936]
[1765558204284,0.3324,3065.6,3064.2,0.4987]
[1765558204487,0.532,3065.5,3064.6,3.26304226]
[1765558204697,0.532,3065.5,3064.5,3.26313849]
[1765558204895,0.8644,3065.5,3064.6,3.2630482]
[1765558205324,0.8644,3065.5,3064.2,0.4987]
[1765558205325,0.532,3065.5,3064.2,0.4987]
[1765558205525,0.3324,3065.4,3064.3,3.26329418]
[1765558205829,0.3324,3065.4,3064.5,3.2631561]
[1765558206126,0.3324,3065.4,3064.6,3.26306267]
[1765558206311,3.26232342,3065.3,3064.2,3.26349341]
[1765558206515,6.52464684,3065.3,3064.2,6.52698795]
[1765558206816,6.52464684,3065.3,3064.2,3.26349341]
[1765558206817,0.58047529,3065.2,3064.2,3.26349341]
[1765558207019,0.11,3065.9,3064.3,0.4987]
[1765558207020,3.37172103,3065.9,3064.3,0.4987]
[1765558207193,0.11,3065.9,3065.2,0.1936]
[1765558207595,0.11,3065.9,3064.2,13.05397703]
[1765558207596,0.58047529,3065.8,3064.7,0.1936]
[1765558207951,0.58047529,3065.8,3064.2,3.26349341]
[1765558208130,0.11,3065.9,3064.3,1.15140753]
[1765558208290,0.11,3065.9,3064.7,0.405504]
[1765558208700,0.11,3065.9,3064.8,0.4987]
[1765558209302,0.69047529,3065.9,3064.8,0.4987]
[1765558209496,3.95216027,3065.9,3064.8,0.4987]
[1765558209710,0.11,3065.9,3064.8,1.24173412]
[1765558209990,0.91287529,3065.8,3064.8,0.74303412]
[1765558210290,0.1113,3064.9,3064.1,3.26350964]
[1765558210836,0.58047529,3065.7,3064.3,0.405504]
[1765558211348,0.58047529,3065.7,3064.4,0.4987]
[1765558212013,0.58047529,3065.4,3064.1,3.26350964]
[1765558212220,0.89386833,3065.3,3064.1,3.93583142]
[1765558212444,3.26253629,3065.1,3064.1,3.93583142]
[1765558212746,6.52507258,3065.1,3064.1,0.67232178]
[1765558213046,6.52507258,3065.1,3063.0,0.532]
[1765558213047,0.91287529,3065.0,3064.0,0.002]
[1765558213250,0.532,3064.9,3064.1,3.26353706]
[1765558213450,0.6433,3064.9,3064.1,3.26353706]
[1765558213607,0.6433,3064.9,3064.1,4.11006129]
[1765558213805,0.6433,3064.9,3064.1,7.37366234]
[1765558214050,0.532,3064.9,3064.1,7.87236234]
[1765558214339,0.532,3064.9,3064.2,0.4987]
[1765558214539,0.11,3065.9,3064.2,0.4987]
[1765558214540,0.58047529,3065.7,3064.3,6.52677608]
[1765558214840,0.11,3065.9,3064.4,2.21985971]
[1765558215134,0.91287529,3065.8,3064.5,0.405504]
[1765558215541,0.11,3065.9,3064.7,0.405504]
[1765558215733,3.79340991,3066.2,3064.7,0.405504]
[1765558215937,0.532,3066.2,3064.9,0.405504]
[1765558216322,4.37385618,3066.2,3065.0,0.4987]
[1765558216520,1.32875709,3066.2,3065.1,6.52507258]
[1765558216708,0.532,3066.6,3065.2,0.405504]
[1765558216932,0.532,3066.6,3065.3,0.4987]
[1765558217320,0.8644,3066.6,3065.3,0.4987]
[1765558217735,0.8644,3066.6,3065.1,6.71867258]
[1765558217736,0.58047529,3066.4,3065.1,6.71867258]
[1765558218040,0.3324,3066.5,3065.2,0.4987]
[1765558218211,3.26072779,3066.8,3065.3,0.405504]
[1765558218410,3.70404929,3066.9,3065.3,0.405504]
[1765558218638,3.37164634,3066.9,3065.5,0.405504]
[1765558218938,0.643,3066.9,3065.7,0.405504]
[1765558219235,3.90363605,3066.9,3065.7,0.405504]
[1765558219435,3.90363605,3066.9,3065.8,0.4987]
[1765558219940,0.58047529,3066.8,3065.6,1.3953072]
[1765558220114,0.91287529,3066.8,3065.4,7.023134]
[1765558220312,0.3324,3066.7,3065.4,7.023134]
[1765558220509,0.58047529,3066.5,3065.4,3.262217]
[1765558220842,0.58047529,3066.5,3065.1,0.6731]
[1765558221044,0.71023562,3066.4,3065.5,3.26211058]
[1765558221338,0.3324,3066.7,3065.5,6.52422116]
[1765558221542,0.3324,3066.7,3065.6,0.4795]
[1765558221543,0.58047529,3066.7,3065.6,0.4795]
[1765558222142,0.001,3067.0,3066.6,0.1977]
[1765558222341,0.001,3067.0,3066.0,0.1977]
[1765558222342,0.111,3066.9,3066.0,0.1977]
[1765558222554,0.111,3066.9,3066.1,6.52294444]
[1765558222717,0.111,3066.9,3066.2,0.72001444]
[1765558222914,6.96470968,3066.9,3065.9,3.26165122]
[1765558223240,6.96470968,3066.9,3065.5,3.2620206]
[1765558223241,0.58047529,3066.8,3065.5,3.2620206]
[1765558223446,0.58047529,3066.6,3065.4,3.26217884]
[1765558223649,0.532,3066.5,3065.1,0.1936]
[1765558223947,0.532,3066.5,3065.1,0.6731]
[1765558224149,0.3324,3066.4,3065.6,3.26193557]
[1765558224454,0.3324,3066.4,3065.2,0.4795]
[1765558224455,0.532,3066.5,3065.2,0.4795]
[1765558224751,0.532,3066.5,3065.3,6.52464684]
[1765558224956,0.532,3066.5,3065.4,0.70041468]
[1765558225119,0.58047529,3066.6,3065.5,0.405504]
[1765558225316,0.643,3066.9,3065.5,0.885004]
[1765558225550,3.26159702,3067.0,3065.7,0.405504]
[1765558225551,0.001,3067.0,3065.7,0.405504]
[1765558225748,0.001,3067.0,3066.9,0.1987]
[1765558225948,0.001,3067.0,3066.9,1.081904]
[1765558226875,0.001,3067.0,3066.9,4.92300076]
[1765558227072,0.001,3067.0,3066.9,6.55125643]
[1765558227737,0.001,3067.0,3066.9,7.20814169]
[1765558228065,3.25847358,3069.0,3066.9,7.20814169]
[1765558228066,0.3324,3069.8,3067.0,1.46367929]
[1765558228291,3.25732899,3070.0,3067.6,0.98597929]
[1765558228566,0.6702329,3069.9,3068.1,0.98597929]
[1765558228732,0.6702329,3069.9,3068.0,8.0988189]
[1765558228733,0.58047529,3069.8,3068.3,0.98597929]
[1765558228931,0.91387529,3069.8,3068.3,0.98597929]
[1765558229160,0.3334,3069.8,3068.5,0.405504]
[1765558229663,0.3368329,3069.9,3068.6,0.4777]
[1765558229863,3.2565863,3070.8,3069.8,0.1987]
[1765558230040,3.25641435,3070.9,3069.8,0.1987]
[1765558230360,0.58047529,3070.8,3069.8,0.1987]
[1765558230767,0.58047529,3070.6,3069.4,0.1987]
[1765558230971,0.58047529,3070.6,3067.8,0.4777]
[1765558230972,6.55368,3069.8,3067.8,0.4777]
[1765558231268,0.58047529,3069.2,3067.9,3.25955865]
[1765558231468,4.756151,3069.4,3067.9,3.25955865]
[1765558231635,4.756151,3069.4,3067.0,8.2975189]
[1765558231636,0.58047529,3069.1,3067.7,3.25974579]
[1765558231835,0.86706263,3069.3,3067.6,3.25984876]
[1765558232034,2.971242,3069.1,3067.3,0.4777]
[1765558232346,2.329494,3068.9,3067.7,3.25974646]
[1765558232666,3.25870889,3068.7,3067.4,6.52017994]
[1765558233074,0.58047529,3069.8,3067.5,1.46367929]
[1765558233278,0.112,3069.9,3067.9,0.405504]
[1765558233279,0.58047529,3069.6,3067.9,0.405504]
[1765558233497,0.38381226,3069.5,3068.1,0.405504]
[1765558233969,0.71721226,3069.5,3068.0,0.4777]
[1765558234981,0.58047529,3069.3,3068.1,6.51869234]
[1765558235306,0.38381226,3069.5,3068.2,0.405504]
[1765558235460,0.58047529,3069.5,3068.2,0.883204]
[1765558235667,0.58047529,3069.5,3068.2,1.46367929]
[1765558235893,0.58047529,3069.5,3068.3,0.6764]
[1765558236272,0.58047529,3069.5,3068.4,0.4777]
[1765558237075,0.58047529,3069.5,3068.5,6.51784258]
[1765558237076,3.25790072,3069.5,3068.5,6.51784258]
[1765558237278,1.29276536,3069.4,3067.9,3.25951232]
[1765558237478,1.29276536,3069.4,3068.3,3.25913067]
[1765558237678,0.95936536,3069.4,3068.2,3.25917212]
[1765558237882,0.3334,3069.3,3068.0,3.25943951]
[1765558238079,0.3334,3069.3,3068.2,3.25916392]
[1765558238466,0.3334,3069.3,3068.3,3.25912272]
[1765558238987,0.3334,3069.3,3068.1,3.2593208]
[1765558238988,3.25817802,3069.2,3068.1,0.1987]
[1765558239190,0.68497043,3069.1,3068.1,0.1987]
[1765558239698,1.21597043,3069.1,3068.1,0.1987]
[1765558240097,1.79644572,3069.1,3068.0,3.25945241]
[1765558240299,0.3334,3069.0,3068.0,3.25945241]
[1765558240500,0.21298457,3068.9,3068.0,3.25945241]
[1765558240717,0.32298457,3068.9,3068.0,3.25945241]
[1765558240920,0.11,3068.9,3068.2,6.51847988]
[1765558241097,0.531,3069.3,3068.3,0.4777]
[1765558241702,0.112,3069.9,3068.4,0.405504]
[1765558241910,6.62690964,3069.9,3068.4,0.405504]
[1765558242112,0.58047529,3069.8,3068.6,0.405504]
[1765558242317,0.112,3069.9,3068.7,0.03258708]
[1765558242614,0.112,3069.9,3068.8,0.405504]
[1765558242985,0.112,3069.9,3069.0,6.9222847]
[1765558243188,0.531,3070.2,3069.0,7.66228317]
[1765558243385,0.001,3070.4,3069.2,0.405504]
[1765558243691,0.001,3070.4,3069.3,0.4777]
[1765558244423,0.001,3070.4,3069.4,0.405504]
[1765558244786,6.51484367,3070.4,3069.3,0.4777]
[1765558244992,6.51484367,3070.4,3069.1,0.77917529]
[1765558244993,0.58047529,3070.1,3069.2,3.25817802]
[1765558245216,0.58047529,3070.1,3069.1,3.25824332]
[1765558245406,0.3334,3070.0,3068.9,3.25841528]
[1765558245600,0.531,3069.9,3068.8,3.25853772]
[1765558245827,0.531,3069.9,3068.9,3.25848824]
[1765558245828,0.643,3069.9,3068.9,3.25848824]
[1765558246007,0.3334,3069.8,3068.6,3.25879182]
[1765558246204,0.3334,3069.8,3068.4,0.4777]
[1765558246395,0.3334,3069.8,3067.9,0.531]
[1765558246596,0.3334,3069.8,3068.3,3.25910915]
[1765558246927,17.579865,3069.7,3067.9,0.531]
[1765558247125,2.37180179,3069.6,3067.8,0.4777]
[1765558247327,2.37180179,3069.6,3068.0,3.25941028]
[1765558247328,0.405504,3069.3,3068.0,3.25941028]
[1765558247626,3.689508,3069.0,3067.8,3.25959881]
[1765558247802,8.837072,3068.8,3067.6,3.25979563]
[1765558248009,0.58047529,3068.7,3067.6,3.25979563]
[1765558248206,0.58047529,3068.7,3067.0,0.1987]
[1765558248207,0.73977773,3068.6,3067.0,0.1987]
[1765558248418,0.73977773,3068.6,3067.1,3.45902495]
[1765558248419,0.3334,3068.6,3067.1,3.45902495]
[1765558248595,0.3334,3068.5,3067.1,6.7194338]
[1765558248801,0.3334,3068.5,3067.1,7.1971338]
[1765558248996,0.58047529,3068.3,3067.1,6.7194338]
[1765558249201,0.58047529,3068.3,3067.2,0.67194338]
[1765558250220,0.58047529,3068.8,3067.4,0.405504]
[1765558250730,0.112,3069.9,3068.7,0.1954]
[1765558251034,6.96028846,3069.9,3068.8,6.51720542]
[1765558251330,1.27650414,3069.8,3068.8,6.51720542]
[1765558251506,0.112,3069.9,3068.8,6.51720542]
[1765558251712,3.36945524,3069.9,3068.8,7.00000542]
[1765558251909,0.58047529,3069.8,3068.8,7.00000542]
[1765558252728,0.58047529,3069.8,3068.8,3.25860271]
[1765558252933,0.58047529,3069.8,3068.8,6.51720542]
[1765558253132,0.58047529,3069.6,3068.8,7.16892596]
[1765558253300,3.83804894,3069.8,3068.8,7.16892596]
[1765558254126,0.58047529,3069.7,3068.8,7.16892596]
[1765558254429,0.531,3070.2,3068.9,0.888304]
[1765558254625,0.112,3069.9,3068.9,0.888304]
[1765558254829,0.112,3069.9,3069.0,1.13158327]
[1765558255331,0.531,3070.2,3069.1,6.99936836]
[1765558255496,0.531,3070.2,3069.1,6.51656836]
[1765558255712,0.58047529,3070.1,3069.1,6.51656836]
[1765558255906,0.58047529,3070.1,3069.1,10.25765254]
[1765558256129,1.11147529,3070.2,3069.2,1.13892358]
[1765558256414,0.58047529,3070.1,3069.2,1.13892358]
[1765558256613,0.58047529,3070.1,3069.1,3.25828418]
[1765558256829,0.58047529,3070.1,3069.1,6.51656836]
[1765558257031,0.8644,3070.2,3069.1,6.51656836]
[1765558257233,0.531,3070.2,3069.2,0.4828]
[1765558257434,0.531,3070.3,3069.2,0.4828]
[1765558257647,0.001,3070.4,3069.3,0.405504]
[1765558257845,0.001,3070.4,3070.3,0.1954]
[1765558258044,0.001,3070.4,3069.5,0.405504]
[1765558258221,0.001,3070.4,3069.6,0.4828]
[1765558259120,0.001,3070.4,3069.7,3.25764732]
[1765558259322,0.001,3070.4,3069.7,6.88933937]
[1765558259733,0.531,3070.3,3069.1,0.1954]
[1765558259930,0.112,3069.8,3069.4,3.25789681]
[1765558260244,0.112,3069.8,3069.2,3.25817196]
[1765558260245,0.531,3070.3,3069.2,0.4828]
[1765558260446,0.001,3070.4,3069.6,3.25775317]
[1765558260635,0.3334,3070.3,3069.1,0.1954]
[1765558260852,0.001,3070.4,3069.6,6.51543477]
[1765558261218,0.001,3070.4,3069.7,0.4912]
[1765558261466,0.001,3070.4,3069.7,0.896704]
[1765558261953,0.001,3070.4,3069.9,0.405504]
[1765558262246,0.001,3070.7,3069.9,0.405504]
[1765558262454,0.001,3070.7,3070.0,0.4912]
[1765558262818,0.001,3070.7,3070.1,0.405504]
[1765558263041,0.001,3070.7,3070.0,0.4912]
[1765558263245,0.001,3070.7,3070.1,9.77166867]
[1765558263453,0.001,3070.7,3070.2,1.02628687]
[1765558263831,0.001,3070.7,3070.2,0.4912]
[1765558264035,0.001,3070.7,3070.3,0.4912]
[1765558264424,0.001,3070.7,3070.4,0.405504]
[1765558264818,0.001,3070.7,3070.1,0.58047529]
[1765558264819,0.001,3070.7,3070.1,1.07167529]
[1765558265060,0.001,3070.7,3070.0,3.25724925]
[1765558265346,0.33797417,3070.7,3069.7,9.77294196]
[1765558265553,3.25760866,3070.7,3069.7,6.51529464]
[1765558265725,0.001,3070.7,3069.8,0.405504]
[1765558265931,0.001,3070.7,3069.8,0.896704]
[1765558266150,0.001,3070.7,3069.7,9.77294196]
[1765558266151,3.25762576,3070.7,3069.7,3.25764732]
[1765558266367,0.001,3070.7,3069.8,0.52377541]
[1765558266525,0.001,3070.7,3069.9,0.405504]
[1765558266893,0.001,3070.7,3070.1,0.405504]
[1765558267021,0.001,3070.7,3070.0,0.4912]
[1765558267225,0.001,3070.7,3070.1,6.51444578]
[1765558267450,0.91587529,3070.7,3070.0,3.25731548]
[1765558267637,1.34434086,3070.7,3069.3,1.0222]
[1765558267820,1.34434086,3070.7,3069.2,0.58047529]
[1765558267821,0.3344,3070.6,3069.4,3.25789636]
[1765558268033,0.531,3070.5,3069.5,3.25781904]
[1765558268229,0.531,3070.5,3069.3,3.25805748]
[1765558268452,0.3344,3070.4,3068.9,0.4912]
[1765558268754,0.3344,3070.4,3069.3,3.25800861]
[1765558268928,0.3344,3070.4,3069.4,3.25790857]
[1765558269127,0.3344,3070.4,3069.3,3.25802971]
[1765558269329,0.58047529,3070.2,3069.1,0.1949]
[1765558269544,0.70944967,3070.1,3069.1,0.1949]
[1765558269857,0.001,3070.7,3069.2,0.4912]
[1765558270050,3.25761,3070.7,3069.3,0.405504]
[1765558270256,0.91487529,3070.6,3069.3,0.896704]
[1765558270625,0.3344,3070.5,3069.3,0.4912]
[1765558271028,0.58047529,3070.6,3069.3,0.4912]
[1765558271364,0.001,3070.7,3069.3,0.4912]
[1765558271553,0.001,3070.7,3069.4,0.405504]
[1765558271856,0.001,3070.7,3069.6,0.405504]
[1765558272231,0.001,3070.7,3069.3,0.58047529]
[1765558272232,0.001,3070.7,3069.8,0.405504]
[1765558272731,0.001,3070.7,3070.0,0.405504]
[1765558273125,0.001,3070.7,3070.1,0.4912]
[1765558273329,0.001,3070.7,3070.2,6.5142336]
[1765558273558,0.001,3070.7,3070.3,0.70054336]
[1765558273973,0.3354,3070.7,3069.4,0.4912]